[Event "FIDE WCCC Open-10 2024"]
[Site "Montesilvano"]
[Date "2024.11.18"]
[Round "4.42"]
[White "Guntaka, Aayansh"]
[Black "Qian, Qipeng"]
[Result "1/2-1/2"]
[ECO "B47"]
[WhiteElo "1798"]
[BlackElo "1641"]
[Annotator "NA RC"]
[PlyCount "111"]
[EventDate "2024.11.18"]
[EventType "swiss"]
[EventCountry "ITA"]
[SourceTitle "playchess.com"]
[Source "ChessBase"]
[SourceQuality "1"]
[TimeControl "5400+30"]

1. e4 {[%emt 0:00:03]} c5 {[%emt 0:00:40]} 2. Nf3 {[%emt 0:00:06]} e6 {[%emt 0:00:22]} 3. d4 {[%emt 0:00:05]} cxd4 {[%emt 0:00:08]} 4. Nxd4 {[%emt 0:00:05]} Nc6 {[%emt 0:00:05]} 5. Nc3 {[%emt 0:00:06]} Qc7 {[%emt 0:00:02]} 6. g3 {[%emt 0:00:09]} Nf6 {[%emt 0:00:12]} 7. Ndb5 {[%emt 0:00:12]} Qb8 {[%emt 0:00:17]} 8. Bf4 {[%emt 0:00:06]} e5 {[%emt 0:00:04]} 9. Bg5 {[%emt 0:00:04]} a6 {[%emt 0:00:08]} 10. Bxf6 {[%emt 0:00:06]} gxf6 {[%emt 0:00:44]} 11. Na3 {[%emt 0:00:09]} Bb4 {[%emt 0:01:02]} 12. Nc4 {[%emt 0:01:53]} b5 {[%emt 0:11:25]} 13. Ne3 {[%emt 0:00:10]} Ne7 {[%emt 0:02:20]} 14. Qf3 {[%emt 0:07:41]} Qb6 {[%emt 0:08:48]} 15. Bg2 {[%emt 0:03:57]} Bb7 {[%emt 0:07:47]} 16. Rd1 {[%emt 0:01:09]} O-O-O {[%emt 0:03:46]} 17. O-O {[%emt 0:01:04]} h5 {[%emt 0:06:54]} 18. h4 {[%emt 0:00:18]} Bc5 {[%emt 0:03:11]} 19. Ned5 {[%emt 0:01:41]} Nxd5 {[%emt 0:00:42]} 20. Nxd5 {[%emt 0:00:07]} Bxd5 {[%emt 0:00:52]} 21. exd5 {[%emt 0:01:16]} Qd6 {[%emt 0:02:37]} 22. c4 {[%emt 0:02:40]} b4 {[%emt 0:02:06]} 23. a3 {[%emt 0:00:54]} bxa3 {[%emt 0:00:51]} 24. bxa3 {[%emt 0:08:32]} Kb7 {[%emt 0:00:42]} 25. Qb3+ {[%emt 0:02:18]} Ka7 {[%emt 0:00:35]} 26. Qd3 {[%emt 0:06:03]} Rhg8 {[%emt 0:00:50]} 27. Kh1 {[%emt 0:00:37]} Rh8 {[%emt 0:03:43]} 28. a4 {[%emt 0:01:53]} Bd4 {[%emt 0:00:28]} 29. Qf5 {[%emt 0:04:08]} Rc8 {[%emt 0:04:50]} 30. Rc1 {[%emt 0:00:14]} Rc5 {[%emt 0:00:13]} 31. Rc2 {[%emt 0:00:53]} Qe7 {[%emt 0:03:44]} 32. d6 {[%emt 0:02:19]} Qxd6 {[%emt 0:00:18]} 33. Rb1 {[%emt 0:00:07]} Rb8 {[%emt 0:03:56]} 34. Rxb8 {[%emt 0:01:09]} Kxb8 {[%emt 0:02:21]} 35. Rc1 {[%emt 0:00:29]} Ka7 {[%emt 0:06:00]} 36. Rb1 {[%emt 0:00:11]} Rc7 {[%emt 0:00:08]} 37. a5 {[%emt 0:01:16]} Bc3 {[%emt 0:04:11]} 38. Qf3 {[%emt 0:00:22]} e4 {[%emt 0:01:24]} 39. Qxc3 {[%emt 0:00:12]} Qd3 {[%emt 0:00:06]} 40. Qb4 {[%emt 0:00:07]} Qxb1+ {[%emt 0:00:06]} 41. Qxb1 {[%emt 0:00:05]} Rxc4 {[%emt 0:00:03]} 42. Bxe4 {[%emt 0:00:09]} Rxe4 {[%emt 0:00:03]} 43. Qxe4 {[%emt 0:00:11]} d5 {[%emt 0:00:04]} 44. Qxd5 {[%emt 0:00:06]} f5 {[%emt 0:00:01]} 45. Qxf5 {[%emt 0:00:23]} f6 {[%emt 0:00:02]} 46. Kg1 {[%emt 0:00:09]} Kb7 {[%emt 0:00:01]} 47. Qd7+ {[%emt 0:00:10]} Ka8 {[%emt 0:00:01]} 48. Kf1 {[%emt 0:00:25]} f5 {[%emt 0:00:04]} 49. Ke2 {[%emt 0:00:06]} f4 {[%emt 0:00:03]} 50. gxf4 {[%emt 0:00:06]} Kb8 {[%emt 0:00:01]} 51. f5 {[%emt 0:00:08]} Ka8 {[%emt 0:00:02]} 52. f6 {[%emt 0:00:07]} Kb8 {[%emt 0:00:02]} 53. f7 {[%emt 0:00:15]} Ka8 {[%emt 0:00:01]} 54. f8=B {[%emt 0:00:12]} Kb8 {[%emt 0:00:04]} 55. Bd6+ {[%emt 0:00:11]} Ka8 {[%emt 0:00:03]} 56. f4 {[%emt 0:00:08]} 1/2-1/2

[Event "FIDE WCCC Open-10 2024"]
[Site "Montesilvano"]
[Date "2024.11.18"]
[Round "4.43"]
[White "Blekh, Erik"]
[Black "Hochman, Gur"]
[Result "1-0"]
[ECO "C40"]
[WhiteElo "1790"]
[BlackElo "1626"]
[Annotator "NA RC"]
[PlyCount "57"]
[EventDate "2024.11.18"]
[EventType "swiss"]
[EventCountry "ITA"]
[SourceTitle "playchess.com"]
[Source "ChessBase"]
[SourceQuality "1"]
[TimeControl "5400+30"]

1. Nf3 {[%emt 0:00:04]} f5 {[%emt 0:00:09]} 2. d3 {[%emt 0:01:09]} Nc6 {[%emt 0:00:12]} 3. e4 {[%emt 0:02:38]} e5 {[%emt 0:00:23]} 4. Nc3 {[%emt 0:02:05]} Nf6 {[%emt 0:04:15]} 5. g3 {[%emt 0:02:06]} Bb4 {[%emt 0:01:10]} 6. Bd2 {[%emt 0:06:07]} d6 {[%emt 0:05:02]} 7. Qe2 {[%emt 0:02:55]} O-O {[%emt 0:14:25]} 8. Bg2 {[%emt 0:02:24]} fxe4 {[%emt 0:02:54]} 9. Nxe4 {[%emt 0:04:03]} Nxe4 {[%emt 0:04:10]} 10. dxe4 {[%emt 0:00:32]} Bxd2+ {[%emt 0:08:05]} 11. Nxd2 {[%emt 0:01:22]} Nd4 {[%emt 0:01:09]} 12. Qd3 {[%emt 0:00:47]} Qf6 {[%emt 0:01:42]} 13. O-O {[%emt 0:01:55]} Be6 {[%emt 0:07:08]} 14. f4 {[%emt 0:07:25]} Qe7 {[%emt 0:03:52]} 15. c3 {[%emt 0:02:15]} Nc6 {[%emt 0:00:26]} 16. f5 {[%emt 0:00:26]} Bc8 {[%emt 0:01:52]} 17. Nf3 {[%emt 0:01:16]} Rd8 {[%emt 0:03:38]} 18. Rae1 {[%emt 0:03:38]} Kh8 {[%emt 0:02:32]} 19. g4 {[%emt 0:02:22]} Rf8 {[%emt 0:03:16]} 20. g5 {[%emt 0:02:22]} Bd7 {[%emt 0:02:46]} 21. h4 {[%emt 0:00:57]} h6 {[%emt 0:01:48]} 22. Qd2 {[%emt 0:02:12]} Kh7 {[%emt 0:00:41]} 23. Rf2 {[%emt 0:01:56]} Be8 {[%emt 0:05:26]} 24. Nh2 {[%emt 0:01:45]} Bh5 {[%emt 0:03:46]} 25. Ref1 {[%emt 0:01:38]} Nd8 {[%emt 0:02:45]} 26. Bf3 {[%emt 0:01:41]} Be8 {[%emt 0:03:13]} 27. Ng4 {[%emt 0:03:45]} h5 {[%emt 0:01:07]} 28. Ne3 {[%emt 0:00:36]} c6 {[%emt 0:02:25]} 29. Qd1 {[%emt 0:01:29]} 1-0

[Event "FIDE WCCC Open-10 2024"]
[Site "Montesilvano"]
[Date "2024.11.18"]
[Round "4.44"]
[White "Makhsatuly, Rakhim"]
[Black "Akramov, Khusan"]
[Result "1-0"]
[ECO "B15"]
[WhiteElo "1683"]
[BlackElo "1782"]
[Annotator "NA RC"]
[PlyCount "107"]
[EventDate "2024.11.18"]
[EventType "swiss"]
[EventCountry "ITA"]
[SourceTitle "playchess.com"]
[Source "ChessBase"]
[SourceQuality "1"]
[TimeControl "5400+30"]

1. e4 {[%emt 0:00:02]} c6 {[%emt 0:00:03]} 2. d4 {[%emt 0:00:02]} d5 {[%emt 0:00:04]} 3. Nc3 {[%emt 0:00:07]} dxe4 {[%emt 0:00:06]} 4. Nxe4 {[%emt 0:00:03]} Nf6 {[%emt 0:00:02]} 5. Nxf6+ {[%emt 0:00:07]} exf6 {[%emt 0:00:05]} 6. c3 {[%emt 0:00:05]} Bd6 {[%emt 0:00:03]} 7. Bd3 {[%emt 0:00:06]} O-O {[%emt 0:00:04]} 8. Ne2 {[%emt 0:00:36]} Re8 {[%emt 0:00:06]} 9. O-O {[%emt 0:00:02]} Nd7 {[%emt 0:00:07]} 10. Bf4 {[%emt 0:01:17]} Nf8 {[%emt 0:00:14]} 11. Bxd6 {[%emt 0:01:15]} Qxd6 {[%emt 0:00:06]} 12. Re1 {[%emt 0:01:48]} Be6 {[%emt 0:01:15]} 13. Ng3 {[%emt 0:04:11]} Ng6 {[%emt 0:00:42]} 14. Qf3 {[%emt 0:02:29]} Re7 {[%emt 0:08:36]} 15. Ne4 {[%emt 0:13:18]} Qd5 {[%emt 0:05:21]} 16. Re3 {[%emt 0:05:27]} Rae8 {[%emt 0:05:17]} 17. b3 {[%emt 0:06:33]} Nh4 {[%emt 0:02:16]} 18. Qg3 {[%emt 0:01:17]} Ng6 {[%emt 0:00:35]} 19. Bc4 {[%emt 0:06:28]} Qh5 {[%emt 0:01:57]} 20. Nd6 {[%emt 0:04:32]} Rd8 {[%emt 0:00:59]} 21. Bxe6 {[%emt 0:00:23]} fxe6 {[%emt 0:00:26]} 22. Rae1 {[%emt 0:02:36]} f5 {[%emt 0:02:17]} 23. Nc4 {[%emt 0:00:42]} f4 {[%emt 0:01:30]} 24. Qh3 {[%emt 0:00:01]} Qxh3 {[%emt 0:00:22]} 25. Rxh3 {[%emt 0:00:02]} e5 {[%emt 0:00:49]} 26. dxe5 {[%emt 0:08:59]} Nxe5 {[%emt 0:00:07]} 27. Kf1 {[%emt 0:01:32]} Ng6 {[%emt 0:01:23]} 28. Rxe7 {[%emt 0:00:21]} Nxe7 {[%emt 0:00:08]} 29. Ke2 {[%emt 0:00:10]} b5 {[%emt 0:02:31]} 30. Nd2 {[%emt 0:00:53]} Nd5 {[%emt 0:00:50]} 31. Rd3 {[%emt 0:02:26]} g5 {[%emt 0:01:20]} 32. Ne4 {[%emt 0:02:08]} Re8 {[%emt 0:00:22]} 33. f3 {[%emt 0:04:18]} Re5 {[%emt 0:13:59]} 34. Kf2 {[%emt 0:03:07]} Kf7 {[%emt 0:05:22]} 35. c4 {[%emt 0:00:44]} bxc4 {[%emt 0:01:03]} 36. bxc4 {[%emt 0:00:07]} Ne3 {[%emt 0:00:54]} 37. Rd7+ {[%emt 0:00:56]} Kg6 {[%emt 0:08:48]} 38. Rd6+ {[%emt 0:00:25]} Kg7 {[%emt 0:00:32]} 39. Rxc6 {[%emt 0:01:08]} Ra5 {[%emt 0:00:47]} 40. Rc7+ {[%emt 0:16:16]} Kg6 {[%emt 0:02:13]} 41. Ke2 {[%emt 0:07:31]} Rxa2+ {[%emt 0:01:42]} 42. Kd3 {[%emt 0:00:06]} Nxg2 {[%emt 0:00:38]} 43. Rc6+ {[%emt 0:01:03]} Kh5 {[%emt 0:00:32]} 44. Nf6+ {[%emt 0:00:33]} Kh4 {[%emt 0:00:11]} 45. Nxh7 {[%emt 0:00:26]} Ne1+ {[%emt 0:01:59]} 46. Ke4 {[%emt 0:00:08]} Kh5 {[%emt 0:03:04]} 47. Nf6+ {[%emt 0:00:52]} Kg6 {[%emt 0:01:34]} 48. Ng4+ {[%emt 0:00:46]} Kg7 {[%emt 0:00:28]} 49. Ne5 {[%emt 0:01:31]} Rxh2 {[%emt 0:02:28]} 50. Rc7+ {[%emt 0:00:07]} Kf8 {[%emt 0:00:48]} 51. Rxa7 {[%emt 0:00:48]} Rc2 {[%emt 0:01:00]} 52. Kf5 {[%emt 0:00:50]} Nxf3 {[%emt 0:00:30]} 53. Kf6 {[%emt 0:00:34]} Kg8 {[%emt 0:02:00]} 54. Ng6 {[%emt 0:00:11]} 1-0

[Event "FIDE WCCC Open-10 2024"]
[Site "Montesilvano"]
[Date "2024.11.18"]
[Round "4.45"]
[White "Zilincan, Tomas"]
[Black "Czech, Emil"]
[Result "0-1"]
[ECO "D02"]
[WhiteElo "1778"]
[BlackElo "1608"]
[Annotator "NA RC"]
[PlyCount "50"]
[EventDate "2024.11.18"]
[EventType "swiss"]
[EventCountry "ITA"]
[SourceTitle "playchess.com"]
[Source "ChessBase"]
[SourceQuality "1"]
[TimeControl "5400+30"]

1. Nf3 {[%emt 0:00:02]} d5 {[%emt 0:00:08]} 2. d4 {[%emt 0:00:06]} Nf6 {[%emt 0:00:06]} 3. Bf4 {[%emt 0:00:05]} c5 {[%emt 0:00:12]} 4. e3 {[%emt 0:00:04]} Nc6 {[%emt 0:00:06]} 5. c3 {[%emt 0:00:12]} e6 {[%emt 0:00:14]} 6. Bd3 {[%emt 0:00:05]} Bd7 {[%emt 0:00:40]} 7. O-O {[%emt 0:00:10]} Nh5 {[%emt 0:01:19]} 8. Bg5 {[%emt 0:00:16]} f6 {[%emt 0:00:36]} 9. Ne5 {[%emt 0:09:40]} Nxe5 {[%emt 0:03:22]} 10. dxe5 {[%emt 0:00:49]} g6 {[%emt 0:03:03]} 11. Bh4 {[%emt 0:03:02]} Be7 {[%emt 0:04:26]} 12. exf6 {[%emt 0:05:01]} Bxf6 {[%emt 0:02:46]} 13. Bg3 {[%emt 0:00:38]} Qb6 {[%emt 0:12:24]} 14. Nd2 {[%emt 0:05:33]} c4 {[%emt 0:13:23]} 15. Be2 {[%emt 0:00:37]} Nxg3 {[%emt 0:00:10]} 16. hxg3 {[%emt 0:01:32]} Rd8 {[%emt 0:05:05]} 17. Qc2 {[%emt 0:02:34]} O-O {[%emt 0:02:27]} 18. Rad1 {[%emt 0:01:20]} Qc5 {[%emt 0:08:06]} 19. e4 {[%emt 0:01:20]} Be5 {[%emt 0:04:35]} 20. exd5 {[%emt 0:02:39]} exd5 {[%emt 0:01:22]} 21. g4 {[%emt 0:08:42]} Bb8 {[%emt 0:03:47]} 22. Nf3 {[%emt 0:01:34]} Bxg4 {[%emt 0:04:16]} 23. Nd4 {[%emt 0:00:20]} Qd6 {[%emt 0:04:06]} 24. g3 {[%emt 0:02:02]} Bh3 {[%emt 0:01:58]} 25. Rfe1 {[%emt 0:00:07]} Rxf2 {[%emt 0:00:38]} 0-1

[Event "FIDE WCCC Open-10 2024"]
[Site "Montesilvano"]
[Date "2024.11.18"]
[Round "4.46"]
[White "Roth, Elai"]
[Black "Zhou, Martin"]
[Result "1/2-1/2"]
[ECO "B22"]
[WhiteElo "1577"]
[BlackElo "1776"]
[Annotator "NA RC"]
[PlyCount "153"]
[EventDate "2024.11.18"]
[EventType "swiss"]
[EventCountry "ITA"]
[SourceTitle "playchess.com"]
[Source "ChessBase"]
[SourceQuality "1"]
[TimeControl "5400+30"]

1. e4 {[%emt 0:00:04]} c5 {[%emt 0:00:04]} 2. c3 {[%emt 0:00:02]} d5 {[%emt 0:00:05]} 3. exd5 {[%emt 0:00:07]} Nf6 {[%emt 0:00:17]} 4. Bb5+ {[%emt 0:00:45]} Nbd7 {[%emt 0:01:46]} 5. d4 {[%emt 0:01:13]} Qb6 {[%emt 0:04:24]} 6. Bc4 {[%emt 0:10:52]} cxd4 {[%emt 0:00:42]} 7. Qxd4 {[%emt 0:00:47]} Qxd4 {[%emt 0:00:10]} 8. cxd4 {[%emt 0:00:08]} Nb6 {[%emt 0:00:11]} 9. Bb3 {[%emt 0:01:18]} Nbxd5 {[%emt 0:00:28]} 10. Nc3 {[%emt 0:00:31]} e6 {[%emt 0:00:48]} 11. Nge2 {[%emt 0:05:20]} Be7 {[%emt 0:03:12]} 12. Nxd5 {[%emt 0:02:14]} Nxd5 {[%emt 0:00:55]} 13. O-O {[%emt 0:01:24]} Bf6 {[%emt 0:05:55]} 14. Ba4+ {[%emt 0:08:39]} Ke7 {[%emt 0:02:19]} 15. Bd2 {[%emt 0:07:02]} b6 {[%emt 0:19:09]} 16. Bc6 {[%emt 0:03:38]} Rb8 {[%emt 0:01:37]} 17. b4 {[%emt 0:05:20]} Bd7 {[%emt 0:06:07]} 18. Bxd7 {[%emt 0:02:04]} Kxd7 {[%emt 0:00:14]} 19. b5 {[%emt 0:00:36]} Rhc8 {[%emt 0:01:10]} 20. Rfc1 {[%emt 0:00:58]} Be7 {[%emt 0:08:17]} 21. a4 {[%emt 0:06:04]} Bb4 {[%emt 0:04:44]} 22. Bxb4 {[%emt 0:14:54]} Nxb4 {[%emt 0:00:11]} 23. Nf4 {[%emt 0:00:36]} Nc2 {[%emt 0:04:32]} 24. Ra2 {[%emt 0:08:09]} Nxd4 {[%emt 0:00:50]} 25. Rd1 {[%emt 0:00:08]} Ke8 {[%emt 0:02:13]} 26. Nh5 {[%emt 0:01:36]} Kf8 {[%emt 0:02:27]} 27. Rad2 {[%emt 0:00:59]} Nb3 {[%emt 0:01:12]} 28. Rd7 {[%emt 0:00:47]} Nc5 {[%emt 0:03:25]} 29. Rxa7 {[%emt 0:01:31]} Ra8 {[%emt 0:02:28]} 30. Rxa8 {[%emt 0:00:14]} Rxa8 {[%emt 0:00:09]} 31. Rd6 {[%emt 0:01:31]} Nxa4 {[%emt 0:01:16]} 32. h3 {[%emt 0:00:25]} Ra5 {[%emt 0:01:53]} 33. Rd8+ {[%emt 0:00:33]} Ke7 {[%emt 0:00:24]} 34. Rb8 {[%emt 0:02:04]} g6 {[%emt 0:09:33]} 35. Rb7+ {[%emt 0:00:29]} Kd6 {[%emt 0:07:55]} 36. Nf6 {[%emt 0:00:56]} Rxb5 {[%emt 0:01:31]} 37. Nxh7 {[%emt 0:00:39]} Rb1+ {[%emt 0:01:36]} 38. Kh2 {[%emt 0:00:09]} f5 {[%emt 0:00:15]} 39. Ra7 {[%emt 0:01:44]} b5 40. Ng5 {[%emt 0:00:30]} Nc5 {[%emt 0:00:52]} 41. Nf3 {[%emt 0:00:49]} b4 {[%emt 0:01:01]} 42. Nd2 {[%emt 0:00:25]} b3 {[%emt 0:00:22]} 43. Ra8 {[%emt 0:00:36]} Rd1 {[%emt 0:01:21]} 44. Nc4+ {[%emt 0:01:10]} Kc6 {[%emt 0:04:30]} 45. Nb2 {[%emt 0:01:06]} Rd2 {[%emt 0:00:00]} 46. Nc4 {[%emt 0:00:25]} Rc2 {[%emt 0:01:00]} 47. Ne5+ {[%emt 0:00:16]} Kd5 {[%emt 0:00:00]} 48. Nf3 {[%emt 0:01:04]} Kc4 {[%emt 0:00:00]} 49. Rb8 {[%emt 0:00:34]} b2 {[%emt 0:00:00]} 50. h4 {[%emt 0:01:50]} Nb3 {[%emt 0:00:00]} 51. Rc8+ {[%emt 0:00:28]} Kb4 {[%emt 0:00:00]} 52. Rb8+ {[%emt 0:00:18]} Kc4 {[%emt 0:01:04]} 53. Rc8+ {[%emt 0:00:10]} Kd5 {[%emt 0:00:21]} 54. Rd8+ {[%emt 0:00:21]} Kc6 {[%emt 0:00:34]} 55. Rc8+ {[%emt 0:00:14]} Kb7 {[%emt 0:00:11]} 56. Rxc2 {[%emt 0:00:15]} b1=Q {[%emt 0:00:11]} 57. Re2 {[%emt 0:00:38]} Qd3 {[%emt 0:00:25]} 58. Rxe6 {[%emt 0:00:07]} Nd4 {[%emt 0:00:29]} 59. Re7+ {[%emt 0:00:49]} Ka6 {[%emt 0:00:16]} 60. Ne5 {[%emt 0:00:14]} Qa3 {[%emt 0:00:32]} 61. Rd7 {[%emt 0:00:31]} Qc5 {[%emt 0:00:51]} 62. Nd3 {[%emt 0:00:30]} Qc3 {[%emt 0:00:30]} 63. Nf4 {[%emt 0:00:37]} Qc6 {[%emt 0:00:26]} 64. Rxd4 {[%emt 0:00:09]} Qf6 {[%emt 0:00:20]} 65. Ra4+ {[%emt 0:01:16]} Kb5 {[%emt 0:00:30]} 66. Rb4+ {[%emt 0:00:30]} Ka6 {[%emt 0:00:19]} 67. Ra4+ {[%emt 0:00:30]} Kb5 {[%emt 0:00:30]} 68. Rb4+ {[%emt 0:00:12]} Ka5 {[%emt 0:00:24]} 69. g3 {[%emt 0:00:32]} Qd6 {[%emt 0:00:25]} 70. Rb2 {[%emt 0:00:39]} Qd4 {[%emt 0:01:04]} 71. Ra2+ {[%emt 0:00:22]} Kb4 {[%emt 0:00:16]} 72. Nxg6 {[%emt 0:00:30]} Qc4 {[%emt 0:00:36]} 73. Rd2 {[%emt 0:00:23]} Qc3 {[%emt 0:00:44]} 74. Rd5 {[%emt 0:00:54]} Qc6 {[%emt 0:00:38]} 75. Nf4 {[%emt 0:11:36]} Qc2 76. Kg1 {[%emt 0:00:00]} Qc1+ {[%emt 0:00:45]} 77. Kg2 {[%emt 0:01:00]} 1/2-1/2

[Event "FIDE WCCC Open-10 2024"]
[Site "Montesilvano"]
[Date "2024.11.18"]
[Round "4.47"]
[White "Todmunkh, Turbat"]
[Black "Wang, Yuwei"]
[Result "1-0"]
[ECO "B22"]
[WhiteElo "1773"]
[BlackElo "1576"]
[Annotator "NA RC"]
[PlyCount "50"]
[EventDate "2024.11.18"]
[EventType "swiss"]
[EventCountry "ITA"]
[SourceTitle "playchess.com"]
[Source "ChessBase"]
[SourceQuality "1"]
[TimeControl "5400+30"]

1. e4 {[%emt 0:00:03]} c5 {[%emt 0:00:12]} 2. c3 {[%emt 0:00:30]} d5 {[%emt 0:00:30]} 3. exd5 {[%emt 0:00:30]} Qxd5 {[%emt 0:00:00]} 4. d4 cxd4 5. cxd4 {[%emt 0:00:30]} Nc6 {[%emt 0:00:25]} 6. Nf3 {[%emt 0:03:00]} Bg4 {[%emt 0:00:20]} 7. Be2 {[%emt 0:04:55]} e6 {[%emt 0:00:55]} 8. Nc3 {[%emt 0:00:24]} Bb4 {[%emt 0:01:20]} 9. O-O {[%emt 0:01:02]} Qa5 {[%emt 0:00:12]} 10. Bd2 {[%emt 0:34:21]} Nf6 {[%emt 0:02:04]} 11. a3 {[%emt 0:06:15]} Bxc3 {[%emt 0:00:39]} 12. bxc3 {[%emt 0:00:09]} Ne4 {[%emt 0:16:30]} 13. Qc2 {[%emt 0:12:24]} Nxd2 {[%emt 0:01:23]} 14. Qxd2 {[%emt 0:00:18]} Rd8 {[%emt 0:04:10]} 15. Qf4 {[%emt 0:09:27]} Bxf3 {[%emt 0:10:56]} 16. Qxf3 {[%emt 0:00:42]} O-O {[%emt 0:09:10]} 17. Rfd1 {[%emt 0:02:02]} Rd5 {[%emt 0:50:14]} 18. Bd3 {[%emt 0:08:46]} Rc8 {[%emt 0:00:00]} 19. Rab1 {[%emt 0:04:37]} b6 {[%emt 0:00:00]} 20. Bc4 {[%emt 0:07:42]} Rf5 {[%emt 0:00:00]} 21. Qe4 {[%emt 0:01:07]} Nd8 {[%emt 0:00:00]} 22. d5 {[%emt 0:02:46]} Qc5 {[%emt 0:00:00]} 23. dxe6 {[%emt 0:00:00]} Qxf2+ {[%emt 0:00:00]} 24. Kh1 {[%emt 0:00:00]} Qf4 {[%emt 0:02:58]} 25. e7 {[%emt 0:00:42]} Ne6 {[%emt 0:01:02]} 1-0

[Event "FIDE WCCC Open-10 2024"]
[Site "Montesilvano"]
[Date "2024.11.18"]
[Round "4.48"]
[White "Fattori Dittmar, Luca"]
[Black "Button-Rabl, Jiban"]
[Result "1/2-1/2"]
[ECO "C65"]
[WhiteElo "1766"]
[BlackElo "1435"]
[Annotator "NA RC"]
[PlyCount "79"]
[EventDate "2024.11.18"]
[EventType "swiss"]
[EventCountry "ITA"]
[SourceTitle "playchess.com"]
[Source "ChessBase"]
[SourceQuality "1"]
[TimeControl "5400+30"]

1. e4 {[%emt 0:00:02]} e5 {[%emt 0:00:27]} 2. Nf3 {[%emt 0:00:12]} Nc6 {[%emt 0:00:11]} 3. Bb5 {[%emt 0:00:16]} Nf6 {[%emt 0:00:11]} 4. Qe2 {[%emt 0:00:36]} Bc5 {[%emt 0:02:11]} 5. O-O {[%emt 0:00:27]} d6 {[%emt 0:01:01]} 6. c3 {[%emt 0:01:11]} O-O {[%emt 0:01:53]} 7. a4 {[%emt 0:01:53]} a6 {[%emt 0:03:31]} 8. Bxc6 {[%emt 0:00:12]} bxc6 {[%emt 0:00:07]} 9. d3 {[%emt 0:01:05]} h6 {[%emt 0:03:07]} 10. Be3 {[%emt 0:00:14]} Ba7 {[%emt 0:06:03]} 11. Nbd2 {[%emt 0:02:00]} Re8 {[%emt 0:03:05]} 12. Bxa7 {[%emt 0:04:53]} Rxa7 {[%emt 0:00:56]} 13. Nc4 {[%emt 0:03:07]} a5 {[%emt 0:09:08]} 14. Rfe1 {[%emt 0:03:39]} Bg4 {[%emt 0:03:16]} 15. h3 {[%emt 0:01:34]} Bh5 {[%emt 0:01:23]} 16. Qe3 {[%emt 0:03:26]} c5 {[%emt 0:02:33]} 17. Nh2 {[%emt 0:11:45]} Nd7 {[%emt 0:07:11]} 18. Nf1 {[%emt 0:09:28]} Nb6 {[%emt 0:03:01]} 19. Nxb6 {[%emt 0:01:36]} cxb6 {[%emt 0:01:00]} 20. Ng3 {[%emt 0:00:15]} Bg6 {[%emt 0:01:11]} 21. d4 {[%emt 0:01:31]} f6 {[%emt 0:03:01]} 22. Rad1 {[%emt 0:07:07]} Rd7 {[%emt 0:01:49]} 23. Qf3 {[%emt 0:05:09]} Qc8 {[%emt 0:04:26]} 24. Qg4 {[%emt 0:03:25]} Kh7 {[%emt 0:01:18]} 25. dxc5 {[%emt 0:01:14]} bxc5 {[%emt 0:01:58]} 26. h4 {[%emt 0:02:46]} Bf7 {[%emt 0:05:02]} 27. Nf5 {[%emt 0:10:07]} Be6 {[%emt 0:00:59]} 28. h5 {[%emt 0:00:59]} Bxf5 {[%emt 0:01:21]} 29. Qxf5+ {[%emt 0:00:16]} Kh8 {[%emt 0:00:32]} 30. Re3 {[%emt 0:00:44]} Red8 {[%emt 0:02:14]} 31. Red3 {[%emt 0:01:19]} Qc6 {[%emt 0:00:33]} 32. Qe6 {[%emt 0:02:40]} Qxa4 {[%emt 0:03:25]} 33. Rxd6 {[%emt 0:00:33]} Rxd6 {[%emt 0:00:15]} 34. Rxd6 {[%emt 0:00:06]} Rxd6 {[%emt 0:00:06]} 35. Qxd6 {[%emt 0:00:10]} Qxe4 {[%emt 0:00:34]} 36. Qxc5 {[%emt 0:00:55]} Qb1+ {[%emt 0:00:11]} 37. Kh2 {[%emt 0:00:09]} Qxb2 {[%emt 0:00:11]} 38. Qc8+ {[%emt 0:01:20]} Kh7 {[%emt 0:00:18]} 39. Qf5+ {[%emt 0:00:12]} Kh8 {[%emt 0:00:28]} 40. Qc8+ {[%emt 0:00:09]} 1/2-1/2